fUSD/lending_fUSD_20260115
["ID","MTS","AMOUNT","RATE_DAILY","PERIOD"]
[402107857,1768521042103,-280.9653154,0.00030636,2]
[402107859,1768521042112,-200.0,0.00030736,2]
[402107861,1768521042121,-6558.0,0.0003089,2]
[402107863,1768521042130,-158.66520404,0.00031,30]
[402107865,1768521042140,-200.0,0.00031043,2]
[402107867,1768521042149,-12273.54044047,0.0003121,2]
[402107869,1768521042157,-200.0,0.00031353,2]
[402107871,1768521042166,-955.6,0.00031372,2]
[402107873,1768521042176,-164.37746824,0.000314,30]
[402107875,1768521042186,-1000.0,0.000314,2]
[402107877,1768521042195,-150.0,0.00031493,2]
[402107879,1768521042204,-500.0,0.00031671,2]
[402107880,1768521042213,-466.16786001,0.000319,2]
[402107882,1768521042223,-280.9653154,0.00032105,2]
[402107884,1768521042234,-1000.0,0.000325,7]
[402107886,1768521042243,-1000.0,0.00032685,90]
[402107888,1768521042252,-1000.0,0.00032685,90]
[402107892,1768521042271,-1600.0,0.00032877,120]
[402107894,1768521042281,-600.0,0.00032877,30]
[402107896,1768521042290,-507.97,0.000329,2]
[402107898,1768521042299,-904.30747174,0.000329,30]
[402107900,1768521042310,-2090.58943164,0.00033,2]
[402107902,1768521042321,-151.0,0.00033,120]
[402107904,1768521042331,-1000.0,0.00033069,120]
[402107906,1768521042341,-381.743,0.00033069,120]
[402107908,1768521042351,-1000.0,0.00033069,30]
[402107910,1768521042361,-1000.0,0.00033069,30]
[402107912,1768521042370,-1000.0,0.00033069,30]
[402107915,1768521042381,-1000.0,0.00033069,30]
[402107917,1768521042390,-578.605,0.00033069,30]
[402107919,1768521042400,-600.0,0.00033151,30]
[402107921,1768521042411,-250.0,0.00033205,24]
[402107923,1768521042420,-551.0,0.00033311,3]
[402107925,1768521042430,-600.0,0.00033425,30]
[402107927,1768521042441,-955.6,0.00033536,5]
[402107929,1768521042451,-280.9653154,0.00033574,2]
[402107931,1768521042461,-250.0,0.00033589,30]
[402107932,1768521042470,-202.24,0.00033662,2]
[402107933,1768521042480,-600.0,0.00033699,30]
[402107934,1768521042490,-152.84284681,0.00033863,60]
[402107935,1768521042500,-150.0,0.00033863,60]
[402107936,1768521042510,-4449.145,0.0003389,2]
[402107937,1768521042520,-600.0,0.00033973,30]
[402107938,1768521042530,-151.0,0.00034,120]
[402107939,1768521042540,-328.75493649,0.000341,30]
[402107940,1768521042549,-151.12,0.00034154,2]
[402107941,1768521042560,-150.0,0.00034154,2]
[402107942,1768521042570,-202.24,0.00034174,2]
[402107943,1768521042583,-332.14,0.00034179,2]
[402107944,1768521042598,-600.0,0.00034247,30]
[402107945,1768521042608,-150.0,0.00034356,2]
[402107946,1768521042618,-300.0,0.00034411,30]
[402107947,1768521042629,-1000.0,0.000345,7]
[402107948,1768521042639,-600.0,0.00034521,30]
[402107949,1768521042650,-18300.17930392,0.0003453,2]
[402107950,1768521042660,-1800.0,0.00034607,14]
[402107951,1768521042671,-300.0,0.00034685,35]
[402107953,1768521042680,-506.0,0.00034689,10]
[402107955,1768521042691,-150.0,0.00034765,2]
[402107957,1768521042700,-600.0,0.00034795,30]
[402107959,1768521042711,-152.0,0.0003484,3]
[402107961,1768521042721,-500.0,0.00034881,14]
[402107963,1768521042735,-900.0,0.00034881,14]
[402107965,1768521042745,-1500.0,0.00034911,120]
[402107967,1768521042755,-163.91,0.00034989,2]
[402107969,1768521042767,-366.27,0.00034989,2]
[402107971,1768521042777,-151.0,0.00035,120]
[402107973,1768521042786,-280.9653154,0.00035044,2]
[402107975,1768521042796,-8000.0,0.00035068,120]
[402107977,1768521042806,-8000.0,0.00035068,120]
[402107979,1768521042816,-8000.0,0.00035068,120]
[402107981,1768521042825,-5462.95764604,0.00035068,120]
[402107983,1768521042835,-600.0,0.00035068,30]
[402107985,1768521042846,-600.0,0.00035342,30]
[402107987,1768521042856,-507.97,0.000354,2]
[402107990,1768521042866,-466.16786001,0.000354,2]
[402107992,1768521042876,-3950.52142148,0.00035429,2]
[402107994,1768521042886,-1800.0,0.00035429,14]
[402107996,1768521042896,-1000.0,0.000355,7]
[402107998,1768521042905,-150.0,0.00035514,2]
[402108000,1768521042916,-2564.81894003,0.00035616,10]
[402108002,1768521042926,-1000.0,0.00035616,2]
[402108004,1768521042935,-500.0,0.00035616,10]
[402108006,1768521042945,-500.0,0.00035616,10]
[402108008,1768521042956,-500.0,0.00035616,10]
[402108010,1768521042966,-408.71233204,0.00035616,10]
[402108012,1768521042976,-500.0,0.00035616,10]
[402108014,1768521042986,-436.41400499,0.00035616,10]
[402108016,1768521042996,-500.0,0.00035616,10]
[402108018,1768521043006,-500.0,0.00035616,10]
[402108021,1768521043016,-500.0,0.00035616,10]
[402108023,1768521043027,-500.0,0.00035616,10]
[402108025,1768521043038,-500.0,0.00035616,10]
[402108027,1768521043048,-500.0,0.00035616,10]
[402108029,1768521043059,-319.04143008,0.00035616,10]
[402108031,1768521043069,-488.19815123,0.00035616,10]
[402108033,1768521043079,-500.0,0.00035616,10]
[402108035,1768521043090,-500.0,0.00035616,10]
[402108037,1768521043100,-500.0,0.00035616,10]
[402108039,1768521043111,-500.0,0.00035616,10]
[402108041,1768521043121,-463.67953969,0.00035616,10]
[402108043,1768521043131,-500.0,0.00035616,10]
[402108045,1768521043142,-500.0,0.00035616,10]
[402108048,1768521043152,-500.0,0.00035616,10]
[402108050,1768521043162,-500.0,0.00035616,10]
[402108052,1768521043172,-500.0,0.00035616,10]
[402108054,1768521043182,-500.0,0.00035616,10]
[402108057,1768521043197,-500.0,0.00035616,10]
[402108059,1768521043207,-500.0,0.00035616,10]
[402108062,1768521043217,-889.73,0.00035616,10]
[402108064,1768521043229,-382.0582518,0.00035616,10]
[402108066,1768521043239,-568.65753776,0.00035616,10]
[402108068,1768521043250,-605.28,0.00035616,10]
[402108070,1768521043260,-500.0,0.00035616,10]
[402108072,1768521043271,-500.0,0.00035616,10]
[402108074,1768521043281,-500.0,0.00035616,10]
[402108076,1768521043291,-500.0,0.00035616,10]
[402108078,1768521043301,-500.0,0.00035616,10]
[402108080,1768521043312,-698.17,0.00035616,10]
[402108082,1768521043322,-676.6,0.00035616,10]
[402108084,1768521043333,-500.0,0.00035616,10]
[402108087,1768521043344,-621.33760418,0.00035616,10]
[402108089,1768521043354,-867.65,0.00035616,10]
[402108091,1768521043364,-500.0,0.00035616,10]
[402108093,1768521043375,-675.41,0.00035616,10]
[402108095,1768521043385,-500.0,0.00035616,10]
[402108097,1768521043395,-500.0,0.00035616,10]
[402108099,1768521043406,-505.40475523,0.00035616,10]
[402108101,1768521043416,-500.0,0.00035616,10]
[402108103,1768521043427,-1709.8,0.00035616,10]
[402108105,1768521043438,-623.16596688,0.00035616,10]
[402108107,1768521043449,-500.0,0.00035616,10]
[402108109,1768521043459,-768.97,0.00035616,10]
[402108111,1768521043470,-500.0,0.00035616,10]
[402108113,1768521043480,-500.0,0.00035616,10]
[402108116,1768521043491,-500.0,0.00035616,10]
[402108118,1768521043500,-153.792577,0.00035616,31]
[402108120,1768521043511,-911.34,0.00035616,10]
[402108122,1768521043521,-500.0,0.00035616,10]
[402108124,1768521043531,-1663.58,0.00035616,10]
[402108126,1768521043541,-500.0,0.00035616,10]
[402108128,1768521043551,-500.0,0.00035616,10]
[402108130,1768521043562,-720.11,0.00035616,10]
[402108132,1768521043572,-889.55,0.00035616,10]
[402108135,1768521043583,-500.0,0.00035616,10]
[402108137,1768521043593,-500.0,0.00035616,10]
[402108139,1768521043602,-500.0,0.00035616,10]
[402108141,1768521043612,-601.59,0.00035616,10]
[402108143,1768521043622,-209.12987817,0.00035616,10]
[402108145,1768521043632,-500.0,0.00035616,10]
[402108147,1768521043642,-619.60833687,0.00035616,10]
[402108149,1768521043652,-1006.52,0.00035616,10]
[402108151,1768521043662,-500.0,0.00035616,10]
[402108153,1768521043672,-500.0,0.00035616,10]
[402108155,1768521043682,-500.0,0.00035616,10]
[402108157,1768521043692,-500.0,0.00035616,10]
[402108159,1768521043702,-500.0,0.00035616,10]
[402108161,1768521043712,-500.0,0.00035616,10]
[402108163,1768521043722,-500.0,0.00035616,10]
[402108166,1768521043736,-500.0,0.00035616,10]
[402108168,1768521043746,-473.63445031,0.00035616,10]
[402108170,1768521043756,-500.0,0.00035616,10]
[402108172,1768521043769,-500.0,0.00035616,10]
[402108174,1768521043779,-500.0,0.00035616,10]
[402108176,1768521043789,-500.0,0.00035616,10]
[402108178,1768521043799,-500.0,0.00035616,10]
[402108180,1768521043811,-500.0,0.00035616,10]
[402108182,1768521043821,-500.0,0.00035616,10]
[402108184,1768521043831,-500.0,0.00035616,10]
[402108186,1768521043841,-500.0,0.00035616,10]
[402108188,1768521043851,-500.0,0.00035616,10]
[402108190,1768521043862,-921.46,0.00035616,10]
[402108192,1768521043872,-1401.24,0.00035616,10]
[402108195,1768521043882,-500.0,0.00035616,10]
[402108197,1768521043892,-577.54,0.00035616,10]
[402108199,1768521043903,-500.0,0.00035616,10]
[402108201,1768521043913,-500.0,0.00035616,10]
[402108203,1768521043923,-500.0,0.00035616,10]
[402108205,1768521043933,-500.0,0.00035616,10]
[402108207,1768521043944,-500.0,0.00035616,10]
[402108209,1768521043954,-500.0,0.00035616,10]
[402108211,1768521043963,-500.0,0.00035616,10]
[402108213,1768521043973,-500.0,0.00035616,10]
[402108215,1768521043984,-500.0,0.00035616,10]
[402108217,1768521043994,-500.0,0.00035616,10]
[402108219,1768521044004,-500.0,0.00035616,10]
[402108221,1768521044015,-587.62563927,0.00035616,10]
[402108223,1768521044025,-500.0,0.00035616,10]
[402108225,1768521044035,-678.99,0.00035616,10]
[402108227,1768521044044,-500.0,0.00035616,10]
[402108229,1768521044055,-599.14199998,0.00035616,10]
[402108231,1768521044066,-500.0,0.00035616,10]
[402108233,1768521044075,-501.0,0.00035616,10]
[402108236,1768521044085,-500.0,0.00035616,10]
[402108238,1768521044095,-500.0,0.00035616,120]
[402108240,1768521044109,-500.0,0.00035616,10]
[402108242,1768521044120,-500.0,0.00035616,10]
[402108244,1768521044130,-500.0,0.00035616,10]
[402108247,1768521044141,-500.0,0.00035616,10]
[402108249,1768521044151,-581.10517041,0.00035616,10]
[402108251,1768521044161,-500.0,0.00035616,10]
[402108253,1768521044172,-500.0,0.00035616,10]
[402108255,1768521044182,-500.0,0.00035616,10]
[402108257,1768521044192,-500.0,0.00035616,10]
[402108259,1768521044202,-500.0,0.00035616,10]
[402108261,1768521044213,-509.93279433,0.00035616,10]
[402108263,1768521044223,-1715.46,0.00035616,10]
[402108266,1768521044234,-500.0,0.00035616,10]
[402108268,1768521044246,-500.0,0.00035616,10]
[402108270,1768521044256,-500.0,0.00035616,10]
[402108272,1768521044266,-500.0,0.00035616,10]
[402108274,1768521044277,-500.0,0.00035616,10]
[402108276,1768521044288,-500.0,0.00035616,10]
[402108278,1768521044298,-500.0,0.00035616,10]
[402108281,1768521044309,-811.39,0.00035616,10]
[402108283,1768521044319,-500.0,0.00035616,10]
[402108285,1768521044330,-500.0,0.00035616,10]
[402108287,1768521044342,-933.19,0.00035616,10]
[402108289,1768521044353,-500.0,0.00035616,10]
[402108291,1768521044363,-622.24,0.00035616,10]
[402108294,1768521044374,-500.0,0.00035616,10]
[402108296,1768521044385,-500.0,0.00035616,10]
[402108298,1768521044396,-500.0,0.00035616,10]
[402108300,1768521044406,-500.0,0.00035616,10]
[402108302,1768521044417,-500.8,0.00035616,10]
[402108337,1768521044737,-500.0,0.00035616,10]
[402108341,1768521044763,-810.32,0.00035616,10]
[402108343,1768521044774,-500.0,0.00035616,10]
[402108345,1768521044784,-537.15,0.00035616,10]
[402108347,1768521044793,-557.45,0.00035616,10]
[402108349,1768521044804,-500.0,0.00035616,10]
[402108351,1768521044813,-1616.05,0.00035616,10]
[402108353,1768521044824,-500.0,0.00035616,10]
[402108355,1768521044833,-500.0,0.00035616,10]
[402108357,1768521044843,-500.0,0.00035616,10]
[402108359,1768521044852,-827.65,0.00035616,10]
[402108361,1768521044862,-577.52,0.00035616,10]
[402108363,1768521044871,-500.0,0.00035616,10]
[402108365,1768521044880,-486.44234255,0.00035616,10]
[402108367,1768521044890,-613.37,0.00035616,10]
[402108369,1768521044900,-500.0,0.00035616,10]
[402108371,1768521044909,-616.29,0.00035616,10]
[402108373,1768521044919,-623.52,0.00035616,10]
[402108375,1768521044928,-500.0,0.00035616,10]
[402108377,1768521044938,-306.53305604,0.00035616,10]
[402108379,1768521044952,-1020.92,0.00035616,10]
[402108381,1768521044962,-500.0,0.00035616,10]
[402108382,1768521044971,-500.0,0.00035616,10]
[402108383,1768521044981,-500.0,0.00035616,10]
[402108384,1768521044990,-500.0,0.00035616,10]
[402108385,1768521045000,-614.93,0.00035616,10]
[402108386,1768521045010,-315.44327013,0.00035616,10]
[402108387,1768521045020,-570.9,0.00035616,10]
[402108388,1768521045029,-937.56,0.00035616,10]
[402108390,1768521045040,-500.0,0.00035616,10]
[402108392,1768521045050,-500.0,0.00035616,10]
[402108394,1768521045059,-635.47,0.00035616,10]
[402108396,1768521045068,-500.0,0.00035616,10]
[402108398,1768521045077,-596.92905346,0.00035616,10]
[402108400,1768521045088,-726.98,0.00035616,10]
[402108402,1768521045098,-549.5680385,0.00035616,10]
[402108404,1768521045108,-500.0,0.00035616,10]
[402108406,1768521045117,-500.0,0.00035616,10]
[402108408,1768521045127,-500.0,0.00035616,10]
[402108410,1768521045136,-884.26,0.00035616,10]
[402108413,1768521045146,-500.0,0.00035616,10]
[402108415,1768521045156,-595.66,0.00035616,10]
[402108417,1768521045165,-520.39,0.00035616,10]
[402108419,1768521045175,-500.0,0.00035616,10]
[402108421,1768521045184,-500.0,0.00035616,10]
[402108423,1768521045194,-500.0,0.00035616,10]
[402108425,1768521045204,-500.0,0.00035616,10]
[402108427,1768521045214,-500.0,0.00035616,10]
[402108429,1768521045223,-500.0,0.00035616,10]
[402108431,1768521045232,-500.0,0.00035616,10]
[402108433,1768521045242,-500.0,0.00035616,10]
[402108435,1768521045253,-508.91922402,0.00035616,10]
[402108437,1768521045263,-500.0,0.00035616,10]
[402108439,1768521045272,-500.0,0.00035616,10]
[402108441,1768521045282,-500.0,0.00035616,10]
[402108443,1768521045292,-500.0,0.00035616,10]
[402108445,1768521045301,-317.05353746,0.00035616,10]
[402108447,1768521045311,-500.0,0.00035616,10]
[402108451,1768521045320,-500.0,0.00035616,10]
[402108454,1768521045330,-500.0,0.00035616,10]
[402108456,1768521045340,-1376.87,0.00035616,10]
[402108458,1768521045349,-652.21,0.00035616,10]
[402108460,1768521045360,-500.0,0.00035616,10]
[402108462,1768521045369,-500.0,0.00035616,10]
[402108464,1768521045379,-500.0,0.00035616,10]
[402108466,1768521045389,-569.77,0.00035616,10]
[402108468,1768521045398,-500.0,0.00035616,10]
[402108470,1768521045408,-540.15,0.00035616,10]
[402108472,1768521045419,-413.09104843,0.00035616,10]
[402108474,1768521045429,-569.71,0.00035616,10]
[402108476,1768521045438,-500.0,0.00035616,10]
[402108478,1768521045448,-175.70303647,0.00035616,10]
[402108480,1768521045457,-500.0,0.00035616,10]
[402108482,1768521045467,-500.0,0.00035616,10]
[402108484,1768521045477,-500.0,0.00035616,10]
[402108486,1768521045486,-500.0,0.00035616,10]
[402108488,1768521045495,-500.0,0.00035616,10]
[402108490,1768521045505,-500.0,0.00035616,10]
[402108493,1768521045515,-500.0,0.00035616,10]
[402108495,1768521045524,-500.0,0.00035616,10]
[402108497,1768521045535,-509.37,0.00035616,10]
[402108499,1768521045545,-500.0,0.00035616,10]
[402108501,1768521045555,-500.0,0.00035616,10]
[402108503,1768521045566,-500.0,0.00035616,10]
[402108505,1768521045575,-675.87,0.00035616,10]
[402108507,1768521045586,-500.0,0.00035616,2]
[402108509,1768521045597,-500.0,0.00035616,10]
[402108511,1768521045606,-500.0,0.00035616,10]
[402108513,1768521045616,-655.79,0.00035616,10]
[402108515,1768521045625,-485.56007213,0.00035616,10]
[402108517,1768521045635,-500.0,0.00035616,10]
[402108519,1768521045645,-500.0,0.00035616,10]
[402108521,1768521045656,-500.0,0.00035616,10]
[402108523,1768521045666,-500.0,0.00035616,10]
[402108524,1768521045675,-500.0,0.00035616,10]
[402108526,1768521045684,-500.0,0.00035616,10]
[402108527,1768521045694,-500.0,0.00035616,10]
[402108529,1768521045707,-500.0,0.00035616,10]
[402108530,1768521045718,-500.0,0.00035616,10]
[402108531,1768521045733,-500.0,0.00035616,10]
[402108532,1768521045743,-500.0,0.00035616,10]
[402108533,1768521045753,-500.0,0.00035616,10]
[402108534,1768521045763,-500.0,0.00035616,10]
[402108535,1768521045775,-500.0,0.00035616,10]
[402108536,1768521045786,-534.19,0.00035616,10]
[402108537,1768521045798,-500.0,0.00035616,10]
[402108538,1768521045808,-752.87,0.00035616,10]
[402108539,1768521045818,-500.0,0.00035616,10]
[402108540,1768521045827,-500.0,0.00035616,10]
[402108541,1768521045838,-500.0,0.00035616,10]
[402108542,1768521045848,-500.0,0.00035616,10]
[402108543,1768521045858,-431.98765171,0.00035616,10]
[402108544,1768521045868,-500.0,0.00035616,10]
[402108545,1768521045878,-593.45,0.00035616,10]
[402108546,1768521045887,-500.0,0.00035616,10]
[402108547,1768521045897,-1171.39,0.00035616,10]
[402108548,1768521045908,-500.0,0.00035616,10]
[402108549,1768521045918,-500.0,0.00035616,10]
[402108550,1768521045927,-500.0,0.00035616,10]
[402108551,1768521045938,-500.0,0.00035616,10]
[402108552,1768521045947,-500.0,0.00035616,10]
[402108553,1768521045957,-500.0,0.00035616,10]
[402108554,1768521045966,-500.0,0.00035616,10]
[402108555,1768521045976,-500.0,0.00035616,10]
[402108556,1768521045985,-500.0,0.00035616,10]
[402108557,1768521045995,-500.0,0.00035616,10]
[402108558,1768521046004,-500.0,0.00035616,10]
[402108559,1768521046014,-500.0,0.00035616,10]
[402108560,1768521046024,-592.57,0.00035616,10]
[402108561,1768521046034,-500.0,0.00035616,10]
[402108562,1768521046044,-577.81103888,0.00035616,10]
[402108564,1768521046054,-500.0,0.00035616,10]
[402108565,1768521046063,-500.0,0.00035616,10]
[402108566,1768521046074,-500.0,0.00035616,10]
[402108567,1768521046084,-628.24,0.00035616,10]
[402108568,1768521046095,-500.0,0.00035616,10]
[402108569,1768521046104,-537.11,0.00035616,10]
[402108570,1768521046113,-500.0,0.00035616,10]
[402108571,1768521046123,-835.22,0.00035616,10]
[402108572,1768521046132,-500.0,0.00035616,10]
[402108573,1768521046141,-500.0,0.00035616,10]
[402108574,1768521046151,-500.0,0.00035616,10]
[402108575,1768521046160,-500.0,0.00035616,10]
[402108576,1768521046169,-645.03,0.00035616,10]
[402108577,1768521046179,-516.36018016,0.00035616,10]
[402108578,1768521046188,-500.0,0.00035616,10]
[402108579,1768521046198,-248.74157416,0.00035616,10]
[402108580,1768521046207,-500.0,0.00035616,10]
[402108581,1768521046217,-619.25,0.00035616,10]
[402108582,1768521046226,-500.0,0.00035616,10]
[402108583,1768521046235,-500.0,0.00035616,10]
[402108584,1768521046245,-500.0,0.00035616,10]
[402108585,1768521046254,-500.0,0.00035616,10]
[402108586,1768521046264,-500.0,0.00035616,10]
[402108587,1768521046273,-678.76,0.00035616,10]
[402108588,1768521046283,-500.0,0.00035616,10]
[402108589,1768521046292,-500.0,0.00035616,5]
[402108590,1768521046302,-500.0,0.00035616,10]
[402108591,1768521046312,-629.4,0.00035616,10]
[402108592,1768521046321,-500.0,0.00035616,10]
[402108593,1768521046331,-500.0,0.00035616,10]
[402108594,1768521046340,-500.0,0.00035616,10]
[402108595,1768521046350,-500.0,0.00035616,10]
[402108596,1768521046359,-1012.0,0.00035616,10]
[402108597,1768521046369,-632.59,0.00035616,10]
[402108598,1768521046380,-553.0,0.00035616,10]
[402108599,1768521046390,-517.36496543,0.00035616,10]
[402108600,1768521046399,-836.32,0.00035616,10]
[402108601,1768521046408,-500.0,0.00035616,10]
[402108602,1768521046418,-500.0,0.00035616,10]
[402108603,1768521046428,-896.11,0.00035616,10]
[402108604,1768521046437,-500.0,0.00035616,10]
[402108605,1768521046447,-500.0,0.00035616,10]
[402108606,1768521046456,-560.72,0.00035616,10]
[402108607,1768521046468,-1079.85,0.00035616,10]
[402108608,1768521046480,-500.0,0.00035616,10]
[402108609,1768521046489,-500.0,0.00035616,10]
[402108610,1768521046500,-500.0,0.00035616,10]
[402108611,1768521046509,-500.0,0.00035616,10]
[402108612,1768521046518,-1521.26,0.00035616,10]
[402108613,1768521046529,-679.45,0.00035616,10]
[402108614,1768521046538,-674.94,0.00035616,10]
[402108615,1768521046548,-500.0,0.00035616,10]
[402108616,1768521046558,-729.47,0.00035616,10]
[402108617,1768521046567,-1295.34,0.00035616,10]
[402108618,1768521046577,-500.0,0.00035616,10]
[402108619,1768521046587,-500.0,0.00035616,10]
[402108620,1768521046596,-864.74,0.00035616,10]
[402108621,1768521046605,-500.0,0.00035616,10]
[402108622,1768521046615,-559.54880532,0.00035616,10]
[402108623,1768521046625,-500.0,0.00035616,10]
[402108624,1768521046634,-1219.31,0.00035616,10]
[402108625,1768521046645,-732.1,0.00035616,10]
[402108626,1768521046654,-553.16,0.00035616,10]
[402108627,1768521046664,-566.95779131,0.00035616,10]
[402108628,1768521046674,-749.53,0.00035616,10]
[402108629,1768521046684,-500.0,0.00035616,10]
[402108630,1768521046693,-500.0,0.00035616,10]
[402108631,1768521046702,-500.0,0.00035616,10]
[402108632,1768521046712,-500.0,0.00035616,10]
[402108633,1768521046723,-787.03,0.00035616,10]
[402108634,1768521046735,-500.0,0.00035616,10]
[402108635,1768521046745,-500.0,0.00035616,10]
[402108636,1768521046755,-500.0,0.00035616,10]
[402108637,1768521046764,-547.04767826,0.00035616,10]
[402108638,1768521046775,-500.0,0.00035616,10]
[402108639,1768521046784,-500.0,0.00035616,10]
[402108640,1768521046794,-743.62,0.00035616,10]
[402108641,1768521046803,-500.0,0.00035616,10]
[402108642,1768521046813,-500.0,0.00035616,10]
[402108643,1768521046822,-500.0,0.00035616,10]
[402108644,1768521046831,-500.0,0.00035616,10]
[402108645,1768521046841,-500.0,0.00035616,10]
[402108646,1768521046851,-500.0,0.00035616,10]
[402108647,1768521046860,-500.0,0.00035616,10]
[402108648,1768521046870,-503.98,0.00035616,10]
[402108649,1768521046880,-500.0,0.00035616,10]
[402108650,1768521046889,-500.0,0.00035616,10]
[402108651,1768521046899,-81.93678584,0.00035616,10]
[402108652,1768521047554,-378.93194908,0.00035616,10]
[402108653,1768521047564,-500.0,0.00035616,10]
[402108654,1768521047574,-586.55,0.00035616,10]
[402108655,1768521047584,-500.0,0.00035616,10]
[402108656,1768521047593,-603.03,0.00035616,10]
[402108657,1768521047602,-500.0,0.00035616,10]
[402108658,1768521047611,-1092.37,0.00035616,2]
[402108659,1768521047622,-603.71,0.00035616,10]
[402108660,1768521047631,-500.0,0.00035616,10]
[402108661,1768521047640,-500.0,0.00035616,10]
[402108662,1768521047650,-98.91417651,0.00035616,10]
[402108663,1768521047661,-409.12582349,0.00035616,10]
[402108664,1768521047671,-564.39,0.00035616,10]
[402108665,1768521047681,-453.98695661,0.00035616,10]
[402108666,1768521047693,-865.13590181,0.00035616,10]
[402108667,1768521047713,-252.32714158,0.00035616,10]
[402108668,1768521047725,-500.0,0.00035616,10]
[402108669,1768521047737,-500.0,0.00035616,10]
[402108670,1768521047746,-500.0,0.00035616,10]
[402108671,1768521047755,-500.0,0.00035616,10]
[402108672,1768521047764,-500.0,0.00035616,10]
[402108673,1768521047774,-500.0,0.00035616,10]
[402108674,1768521047783,-500.0,0.00035616,10]
[402108675,1768521047792,-9.23953979,0.00035616,10]
[402108676,1768521047808,-164.1623047,0.00019014,2]
[402108677,1768521047818,-490.76046021,0.00035616,10]
[402108678,1768521047827,-509.6231991,0.00035616,10]
[402108679,1768521047836,-500.0,0.00035616,10]
[402108680,1768521047846,-500.0,0.00035616,10]
[402108681,1768521047855,-500.0,0.00035616,10]
[402108682,1768521047864,-500.0,0.00035616,10]
[402108683,1768521047873,-500.0,0.00035616,10]
[402108684,1768521047883,-622.36972283,0.00035616,10]
[402108685,1768521047892,-500.0,0.00035616,10]
[402108687,1768521047901,-500.0,0.00035616,10]
[402108689,1768521047910,-500.0,0.00035616,10]
[402108691,1768521047921,-1181.71,0.00035616,10]
[402108693,1768521047931,-500.0,0.00035616,10]
[402108695,1768521047940,-500.0,0.00035616,10]
[402108697,1768521047949,-1027.42,0.00035616,10]
[402108699,1768521047958,-766.23,0.00035616,10]
[402108700,1768521047967,-500.0,0.00035616,10]
[402108701,1768521047976,-1059.9,0.00035616,10]
[402108702,1768521047985,-500.0,0.00035616,10]
[402108703,1768521047994,-500.0,0.00035616,10]
[402108704,1768521048003,-500.0,0.00035616,10]
[402108705,1768521048012,-500.0,0.00035616,10]
[402108706,1768521048021,-500.00409018,0.00035616,10]
[402108707,1768521048031,-615.59,0.00035616,10]
[402108708,1768521048040,-500.0,0.00035616,10]
[402108709,1768521048050,-539.49,0.00035616,10]
[402108710,1768521048059,-568.75659813,0.00035616,10]
[402108711,1768521048069,-500.0,0.00035616,10]
[402108712,1768521048079,-500.0,0.00035616,10]
[402108713,1768521048088,-500.0,0.00035616,10]
[402108714,1768521048097,-500.0,0.00035616,10]